fUSD/lending_fUSD_20240805
["ID","MTS","AMOUNT","RATE_DAILY","PERIOD"]
[334273076,1722881432687,-151.5,0.0001099,2]
[334273077,1722881432697,-151.5,0.0001099,2]
[334273078,1722881432710,-151.5,0.0001099,2]
[334273079,1722881432721,-151.5,0.0001099,2]
[334273080,1722881432730,-151.5,0.0001099,2]
[334273081,1722881432740,-151.5,0.0001099,2]
[334273082,1722881432751,-151.5,0.0001099,2]
[334273083,1722881432761,-151.5,0.0001099,2]
[334273084,1722881432770,-151.5,0.0001099,2]
[334273085,1722881432780,-1638.70455054,0.00010999,2]
[334273086,1722881432789,-31126.87530257,0.00011,2]
[334273087,1722881432804,-2005.57355483,0.00011,2]
[334273090,1722881432816,-3378.75833065,0.00011,2]
[334273092,1722881432827,-280.56667432,0.00011,2]
[334273093,1722881432838,-2669.37803247,0.00011,2]
[334273094,1722881432851,-1650.99,0.00011,2]
[334273095,1722881432869,-322.91174239,0.00011,2]
[334273096,1722881432882,-746.44510063,0.00011,2]
[334273097,1722881433265,-2918.20544112,0.00011,2]
[334273098,1722881433291,-3641.40814063,0.00011,2]
[334273099,1722881433302,-46496.65951031,0.00011,2]
[334273112,1722881437481,-843.27,0.00011,2]
[334273113,1722881437569,-450.95372915,0.00011,2]
[334273114,1722881437632,-1360.71970477,0.00011,2]
[334273116,1722881437707,-124996.13602363,0.00011,2]
[334273117,1722881437719,-12573.41437419,0.00011,2]
[334273118,1722881437730,-2348.40046312,0.00011,2]
[334273119,1722881437741,-647.96096099,0.00011,2]
[334273120,1722881437756,-2477.47500014,0.00011,2]
[334273121,1722881437824,-6500.0,0.00011,2]
[334273264,1722881439463,-27467.4294111,0.00011,2]
[334273318,1722881439992,-206326.95195321,0.00011,2]
[334273322,1722881440006,-73282.1245874,0.00011,2]
[334273324,1722881440020,-1213.13686397,0.00011,2]
[334273326,1722881440033,-354.33584849,0.00011,2]
[334273328,1722881440045,-2123.07399969,0.00011,2]
[334273331,1722881440057,-10477.9876383,0.00011,2]
[334273333,1722881440069,-2078.21907212,0.00011,2]
[334273335,1722881440082,-1214.79818361,0.00011,2]
[334273337,1722881440094,-3145.404275,0.00011,2]
[334273339,1722881440105,-1950.27975375,0.00011,2]
[334273342,1722881440117,-6618.563923,0.00011,2]
[334273344,1722881440129,-531.2423039,0.00011,2]
[334273346,1722881440140,-4172.95828612,0.00011,2]
[334273348,1722881440151,-4478.44625082,0.00011,2]
[334273350,1722881440163,-10625.59365678,0.00011,2]
[334273352,1722881440176,-687.06,0.00011,2]
[334273354,1722881440187,-335.545,0.00011,2]
[334273357,1722881440199,-267.88380043,0.00011,2]
[334273685,1722881443537,-33724.11572845,0.00011,2]
[334273687,1722881443553,-68166.51069546,0.00011,2]
[334273689,1722881443564,-2499.6238,0.00011,2]
[334273804,1722881444685,-1745.585,0.00011,2]
[334273805,1722881444696,-514.96451937,0.00011,2]
[334273806,1722881444707,-301.25385499,0.00011,2]
[334273807,1722881444719,-446.69625,0.00011,2]
[334273808,1722881444730,-1016.18242901,0.00011,2]
[334273914,1722881445634,-817.32850703,0.00011,2]
[334273958,1722881446056,-11692.06107438,0.00011,2]
[334273960,1722881446066,-557313.38477715,0.00011,2]
[334273962,1722881446077,-4116.0002468,0.00011,2]
[334273965,1722881446092,-769.67,0.00011,2]
[334273967,1722881446103,-2045.84545072,0.00011,2]
[334273969,1722881446119,-450.0,0.00011,2]
[334274725,1722881831089,611.59,9.437e-05,2]
[334274726,1722881900183,227.63850404,9.437e-05,2]
[334274727,1722881901033,155.0,9.437e-05,2]
[334274728,1722881901768,790.6850376,9.437e-05,2]
[334274729,1722881901802,158.93327115,9.437e-05,2]
[334274730,1722881902243,3067.08259796,9.437e-05,2]
[334274731,1722881902442,363.72095219,9.437e-05,2]
[334274732,1722881904959,20381.69479495,9.437e-05,2]
[334274733,1722881905424,1309.46828647,9.437e-05,2]
[334274734,1722881905720,485.39693971,9.437e-05,2]
[334274735,1722881909026,155.0,9.437e-05,2]
[334274736,1722881911794,790.6850376,9.437e-05,2]
[334274737,1722881912338,7575.17855654,9.437e-05,2]
[334274738,1722881914059,2563.7675372,9.437e-05,2]
[334274739,1722881915027,411.8268421,9.437e-05,2]
[334274740,1722881916183,90418.83010505,9.437e-05,2]
[334274741,1722881917671,1268.2727819,9.437e-05,2]
[334274742,1722881923915,155.0,9.437e-05,2]
[334274743,1722881927800,1370.6853126,9.437e-05,2]
[334274745,1722881957762,1370.6853126,9.437e-05,2]
[334274746,1722881967262,291.4620008,9.437e-05,2]
[334274747,1722881986038,155.0,9.437e-05,2]
[334274748,1722881989464,227.63850404,9.437e-05,2]
[334274749,1722881998966,20381.69479495,9.437e-05,2]
[334274750,1722882008188,150.0,9.437e-05,2]
[334274751,1722882008366,150.0,9.437e-05,2]
[334274752,1722882008543,150.0,9.437e-05,2]
[334274753,1722882008756,150.0,9.437e-05,2]
[334274754,1722882008933,150.0,9.437e-05,2]
[334274755,1722882009102,150.0,9.437e-05,2]
[334274756,1722882009302,150.0,9.437e-05,2]
[334274757,1722882009509,150.0,9.437e-05,2]
[334274758,1722882009954,150.0,9.437e-05,2]
[334274759,1722882010163,150.0,9.437e-05,2]
[334274760,1722882010355,150.0,9.437e-05,2]
[334274761,1722882010428,1309.46828647,9.437e-05,2]
[334274762,1722882010544,150.0,9.437e-05,2]
[334274763,1722882010773,150.0,9.437e-05,2]
[334274764,1722882012366,150.0,9.437e-05,2]
[334274765,1722882012410,150.0,9.437e-05,2]
[334274766,1722882012451,150.0,9.437e-05,2]
[334274767,1722882012485,150.0,9.437e-05,2]
[334274768,1722882012535,150.0,9.437e-05,2]
[334274769,1722882012573,375.90144902,9.437e-05,2]
[334274770,1722882012615,150.0,9.437e-05,2]
[334274771,1722882012686,150.0,9.437e-05,2]
[334274772,1722882012885,150.0,9.437e-05,2]
[334274773,1722882013082,150.0,9.437e-05,2]
[334274774,1722882013264,150.0,9.437e-05,2]
[334274775,1722882013473,150.0,9.437e-05,2]
[334274776,1722882013689,150.0,9.437e-05,2]
[334274777,1722882013878,150.0,9.437e-05,2]
[334274778,1722882014068,150.0,9.437e-05,2]
[334274779,1722882014274,197.42479178,9.437e-05,2]
[334274780,1722882017670,1268.2727819,9.437e-05,2]
[334274781,1722882023672,485.15245066,9.437e-05,2]
[334274782,1722882028677,1268.2727819,9.437e-05,2]
[334274783,1722882037777,788.4393823,9.437e-05,2]
[334274784,1722882074538,274.39514721,9.437e-05,2]
[334274785,1722882075775,451.01591832,9.437e-05,2]
[334274786,1722882080168,291.16594814,9.437e-05,2]
[334274787,1722882084983,2139.55794225,9.437e-05,2]
[334274788,1722882108434,1308.27325381,9.437e-05,2]
[334274789,1722882139699,449.8148225,9.437e-05,2]
[334274790,1722882207280,500.0,9.362e-05,2]
[334274791,1722882211144,200.10814605,9.315e-05,2]
[334274792,1722882343135,650.28,8.3e-05,2]
[334274794,1722882423277,238.83287979,8.3e-05,2]
[334274796,1722882426816,1222.70109988,8.3e-05,2]
[334274797,1722882428469,20375.34613072,8.3e-05,2]
[334274798,1722882432908,227.63850404,8.3e-05,2]
[334274799,1722882434203,81309.48692958,8.3e-05,2]
[334274800,1722882434474,242.69113318,8.3e-05,2]
[334274801,1722882435049,245.94394557,8.3e-05,2]
[334274802,1722882436050,383.10378803,8.3e-05,2]
[334274810,1722882447699,1268.06987506,8.3e-05,2]
[334274811,1722882449147,1633.46873973,8.3e-05,2]
[334274814,1722882459869,1268.06987506,8.3e-05,2]
[334274820,1722882502721,227.63850404,8.3e-05,2]
[334274823,1722882513988,3777.1788443,8.3e-05,2]
[334274882,1722882590352,1633.46873973,8.3e-05,2]
[334274917,1722882631959,-402.36488711,9.947e-05,2]
[334274918,1722882631973,-200.0,0.00010019,2]
[334274919,1722882631985,-146.6510453,0.00010021,2]
[334274920,1722882632001,-53.3489547,0.00010021,2]
[334274921,1722882632014,-1285.94983184,0.00010047,2]
[334274922,1722882632029,-977.84602417,0.00010047,2]
[334274923,1722882632047,-3795.21758837,0.00010047,2]
[334274924,1722882632064,-451.92492773,0.00010047,2]
[334274927,1722882632168,-270.06906,0.00010047,2]
[334274936,1722882636415,971.82212844,8.3e-05,2]
[334274944,1722882637744,-3936.04611518,0.00010047,2]
[334274946,1722882637755,-313.147835,0.00010047,2]
[334274949,1722882637767,-4951.54042417,0.00010047,2]
[334274951,1722882637779,-7918.25819354,0.00010047,2]
[334274953,1722882637789,-227.63850404,0.0001006,2]
[334274955,1722882637802,-155.0,0.0001006,2]
[334274957,1722882637812,-269.29781518,0.0001006,2]
[334274959,1722882637821,-176.7,0.00010065,2]
[334274961,1722882637831,-1000.0,0.00010074,2]
[334274963,1722882637840,-250.0,0.00010144,2]
[334274964,1722882637850,-1053.91,0.00010152,2]
[334274965,1722882637859,-216.65,0.00010299,2]
[334274966,1722882637869,-650.28,0.00010564,2]
[334274967,1722882637878,-900.0,0.000107,3]
[334274968,1722882637887,-999.99,0.000107,2]
[334274969,1722882637897,-150.0,0.00010799,2]
[334274970,1722882637906,-161.0786,0.000108,2]
[334274971,1722882637915,-4981.1471,0.000108,2]
[334274972,1722882637929,-3028.0524,0.000108,2]
[334274973,1722882637938,-1900.0,0.000108,3]
[334274974,1722882637948,-14003.22630704,0.0001089,2]
[334274975,1722882637958,-758.59968379,0.00010899,2]
[334274976,1722882637968,-494.79494799,0.00010899,2]
[334274977,1722882637978,-50228.00016714,0.000109,2]
[334274978,1722882637989,-20369.26103286,0.000109,2]
[334274979,1722882637999,-1289.3058,0.000109,2]
[334274980,1722882638009,-960.3756,0.000109,2]
[334274981,1722882638019,-6554.435778,0.000109,2]
[334274982,1722882638028,-1772.4321,0.000109,2]
[334274983,1722882638037,-14134.7269,0.000109,2]
[334274984,1722882638050,-8919.46278914,0.000109,2]
[334274985,1722882638070,-922.63851348,0.000109,2]
[334274986,1722882638082,-82516.52649738,0.000109,2]
[334274987,1722882638091,-60870.4633,0.000109,2]
[334274988,1722882638103,-3520.9278,0.000109,2]
[334274989,1722882638113,-475.1075,0.000109,2]
[334274990,1722882638123,-3317.5461,0.000109,2]
[334274991,1722882638133,-178.41977542,0.000109,2]
[334274992,1722882638145,-171.85912976,0.000109,2]
[334274993,1722882638155,-918.75431608,0.000109,2]
[334274994,1722882638164,-167.16366305,0.000109,2]
[334274995,1722882638173,-2900.0,0.000109,3]
[334274996,1722882638182,-158.96084289,0.000109,2]
[334274997,1722882638191,-5877.84945484,0.000109,2]
[334274998,1722882638201,-480.32367318,0.000109,2]
[334274999,1722882638210,-150.0,0.00010959,2]
[334275000,1722882638219,-5803.54,0.00010959,2]
[334275001,1722882638228,-7014.23,0.00010959,2]
[334275002,1722882638238,-250.0,0.00010959,2]
[334275003,1722882638247,-335.02,0.00010959,2]
[334275004,1722882638257,-335.02,0.00010959,2]
[334275005,1722882638266,-151.12,0.0001099,2]
[334275006,1722882638275,-151.12,0.0001099,2]
[334275007,1722882638285,-151.12,0.0001099,2]
[334275008,1722882638294,-151.12,0.0001099,2]
[334275009,1722882638306,-151.12,0.0001099,2]
[334275010,1722882638316,-151.12,0.0001099,2]
[334275011,1722882638325,-151.12,0.0001099,2]
[334275012,1722882638334,-151.12,0.0001099,2]
[334275013,1722882638343,-151.12,0.0001099,2]
[334275014,1722882638352,-151.12,0.0001099,2]
[334275015,1722882638361,-151.12,0.0001099,2]
[334275016,1722882638372,-151.12,0.0001099,2]
[334275017,1722882638380,-151.12,0.0001099,2]
[334275018,1722882638390,-151.12,0.0001099,2]
[334275019,1722882638399,-151.12,0.0001099,2]
[334275020,1722882638408,-151.12,0.0001099,2]
[334275021,1722882638417,-151.12,0.0001099,2]
[334275023,1722882638427,-151.12,0.0001099,2]
[334275025,1722882638436,-151.12,0.0001099,2]
[334275026,1722882638445,-151.12,0.0001099,2]
[334275027,1722882638455,-151.12,0.0001099,2]
[334275028,1722882638464,-151.12,0.0001099,2]
[334275029,1722882638474,-151.12,0.0001099,2]
[334275030,1722882638483,-151.12,0.0001099,2]
[334275031,1722882638493,-151.12,0.0001099,2]
[334275032,1722882638503,-151.12,0.0001099,2]
[334275034,1722882638513,-151.12,0.0001099,2]
[334275036,1722882638522,-151.12,0.0001099,2]
[334275038,1722882638532,-151.12,0.0001099,2]
[334275040,1722882638541,-151.12,0.0001099,2]
[334275042,1722882638553,-151.12,0.0001099,2]
[334275044,1722882638562,-151.12,0.0001099,2]
[334275046,1722882638571,-151.12,0.0001099,2]
[334275048,1722882638580,-151.12,0.0001099,2]
[334275050,1722882638589,-151.12,0.0001099,2]
[334275052,1722882638599,-151.12,0.0001099,2]
[334275054,1722882638609,-151.12,0.0001099,2]
[334275056,1722882638618,-151.12,0.0001099,2]
[334275058,1722882638628,-151.12,0.0001099,2]
[334275060,1722882638638,-151.12,0.0001099,2]
[334275062,1722882638647,-151.12,0.0001099,2]
[334275063,1722882638657,-151.12,0.0001099,2]
[334275065,1722882638667,-151.12,0.0001099,2]
[334275068,1722882638677,-151.12,0.0001099,2]
[334275069,1722882638687,-151.12,0.0001099,2]
[334275071,1722882638698,-151.12,0.0001099,2]
[334275073,1722882638707,-151.12,0.0001099,2]
[334275075,1722882638717,-151.12,0.0001099,2]
[334275077,1722882638727,-151.12,0.0001099,2]
[334275079,1722882638736,-151.12,0.0001099,2]
[334275081,1722882638745,-151.12,0.0001099,2]
[334275083,1722882638755,-1018.23147294,0.00010997,2]
[334275085,1722882638765,-2424.54979713,0.00010999,2]
[334275087,1722882638774,-27263.66065392,0.00010999,2]
[334275089,1722882638784,-500.0,0.00010999,2]
[334275091,1722882638795,-500.0,0.00010999,2]
[334275093,1722882638810,-500.0,0.00010999,2]
[334275095,1722882638820,-500.0,0.00010999,2]
[334275097,1722882638829,-500.0,0.00010999,2]
[334275099,1722882638839,-500.0,0.00010999,2]
[334275101,1722882638849,-500.0,0.00010999,2]
[334275103,1722882638859,-500.0,0.00010999,2]
[334275105,1722882638869,-500.0,0.00010999,2]
[334275107,1722882638879,-500.0,0.00010999,2]
[334275109,1722882638888,-500.0,0.00010999,2]
[334275111,1722882638898,-500.0,0.00010999,2]
[334275113,1722882638907,-500.0,0.00010999,2]
[334275115,1722882638917,-500.0,0.00010999,2]
[334275117,1722882638926,-500.0,0.00010999,2]
[334275119,1722882638936,-500.0,0.00010999,2]
[334275121,1722882638945,-500.0,0.00010999,2]
[334275123,1722882638954,-500.0,0.00010999,2]
[334275125,1722882638964,-500.0,0.00010999,2]
[334275127,1722882638973,-500.0,0.00010999,2]
[334275129,1722882638983,-500.0,0.00010999,2]
[334275131,1722882638992,-500.0,0.00010999,2]
[334275133,1722882639001,-500.0,0.00010999,2]
[334275135,1722882639010,-500.0,0.00010999,2]
[334275137,1722882639021,-500.0,0.00010999,2]
[334275139,1722882639030,-500.0,0.00010999,2]
[334275141,1722882639039,-500.0,0.00010999,2]
[334275143,1722882639054,-500.0,0.00010999,2]
[334275145,1722882639064,-500.0,0.00010999,2]
[334275147,1722882639075,-500.0,0.00010999,2]
[334275149,1722882639084,-500.0,0.00010999,2]
[334275151,1722882639094,-500.0,0.00010999,2]
[334275153,1722882639103,-500.0,0.00010999,2]
[334275155,1722882639113,-500.0,0.00010999,2]
[334275157,1722882639123,-500.0,0.00010999,2]
[334275159,1722882639135,-500.0,0.00010999,2]
[334275161,1722882639144,-500.0,0.00010999,2]
[334275163,1722882639154,-500.0,0.00010999,2]
[334275165,1722882639163,-500.0,0.00010999,2]
[334275167,1722882639172,-500.0,0.00010999,2]
[334275169,1722882639182,-500.0,0.00010999,2]
[334275171,1722882639191,-610.21934054,0.00010999,2]
[334275173,1722882639201,-500.0,0.00010999,2]
[334275175,1722882639210,-500.0,0.00010999,2]
[334275177,1722882639219,-500.0,0.00010999,2]
[334275179,1722882639229,-500.0,0.00010999,2]
[334275181,1722882639238,-500.0,0.00010999,2]
[334275183,1722882639247,-500.0,0.00010999,2]
[334275185,1722882639256,-500.0,0.00010999,2]
[334275187,1722882639266,-500.0,0.00010999,2]
[334275189,1722882639276,-500.0,0.00010999,2]
[334275191,1722882639286,-500.0,0.00010999,2]
[334275193,1722882639296,-500.0,0.00010999,2]
[334275195,1722882639311,-500.0,0.00010999,2]
[334275197,1722882639320,-500.0,0.00010999,2]
[334275199,1722882639329,-500.0,0.00010999,2]
[334275201,1722882639339,-500.0,0.00010999,2]
[334275203,1722882639348,-500.0,0.00010999,2]
[334275205,1722882639358,-500.0,0.00010999,2]
[334275207,1722882639367,-500.0,0.00010999,2]
[334275208,1722882639378,-500.0,0.00010999,2]
[334275210,1722882639387,-500.0,0.00010999,2]
[334275212,1722882639397,-500.0,0.00010999,2]
[334275214,1722882639407,-600.0,0.00010999,2]
[334275216,1722882639416,-500.0,0.00010999,2]
[334275218,1722882639425,-500.0,0.00010999,2]
[334275220,1722882639435,-500.0,0.00010999,2]
[334275222,1722882639444,-500.0,0.00010999,2]
[334275224,1722882639454,-500.0,0.00010999,2]
[334275227,1722882639463,-500.0,0.00010999,2]
[334275229,1722882639473,-796.19286455,0.00010999,2]
[334275231,1722882639482,-796.19286455,0.00010999,2]
[334275233,1722882639492,-796.19286455,0.00010999,2]
[334275235,1722882639502,-796.19286455,0.00010999,2]
[334275237,1722882639511,-796.19286455,0.00010999,2]
[334275239,1722882639521,-796.19286455,0.00010999,2]
[334275241,1722882639530,-796.19286455,0.00010999,2]
[334275243,1722882639540,-796.19286455,0.00010999,2]
[334275245,1722882639554,-796.19286455,0.00010999,2]
[334275248,1722882639563,-796.19286455,0.00010999,2]
[334275250,1722882639572,-796.19286455,0.00010999,2]
[334275252,1722882639581,-796.19286455,0.00010999,2]
[334275254,1722882639590,-796.19286455,0.00010999,2]
[334275256,1722882639599,-796.19286455,0.00010999,2]
[334275258,1722882639607,-796.19286455,0.00010999,2]
[334275260,1722882639616,-796.19286455,0.00010999,2]
[334275262,1722882639625,-796.19286455,0.00010999,2]
[334275264,1722882639634,-796.19286455,0.00010999,2]
[334275266,1722882639643,-796.19286455,0.00010999,2]
[334275268,1722882639652,-796.19286455,0.00010999,2]
[334275270,1722882639661,-796.19286455,0.00010999,2]
[334275272,1722882639670,-796.19286455,0.00010999,2]
[334275274,1722882639679,-796.19286455,0.00010999,2]
[334275275,1722882639689,-796.19286455,0.00010999,2]
[334275277,1722882639698,-796.19286455,0.00010999,2]
[334275279,1722882639707,-796.19286455,0.00010999,2]
[334275281,1722882639717,-796.19286455,0.00010999,2]
[334275284,1722882639726,-796.19286455,0.00010999,2]
[334275287,1722882639735,-796.19286455,0.00010999,2]
[334275290,1722882639745,-796.19286455,0.00010999,2]
[334275293,1722882639754,-796.19286455,0.00010999,2]
[334275296,1722882639763,-796.19286455,0.00010999,2]
[334275298,1722882639772,-796.19286455,0.00010999,2]
[334275300,1722882639781,-796.19286455,0.00010999,2]
[334275302,1722882639792,-796.19286455,0.00010999,2]
[334275304,1722882639804,-500.0,0.00010999,2]
[334275306,1722882639814,-796.19286455,0.00010999,2]
[334275308,1722882639824,-796.19286455,0.00010999,2]
[334275310,1722882639833,-796.19286455,0.00010999,2]
[334275312,1722882639844,-796.19286455,0.00010999,2]
[334275316,1722882639857,-796.19286455,0.00010999,2]
[334275320,1722882639869,-796.19286455,0.00010999,2]
[334275324,1722882639881,-500.0,0.00010999,2]
[334275326,1722882639893,-796.19286455,0.00010999,2]
[334275328,1722882639904,-183.23314245,0.00010999,2]
[334275331,1722882639915,-796.19286455,0.00010999,2]
[334275334,1722882639926,-796.19286455,0.00010999,2]
[334275337,1722882639937,-796.19286455,0.00010999,2]
[334275340,1722882639948,-796.19286455,0.00010999,2]
[334275343,1722882639958,-796.19286455,0.00010999,2]
[334275346,1722882639968,-796.19286455,0.00010999,2]
[334275348,1722882639978,-796.19286455,0.00010999,2]
[334275350,1722882639989,-796.19286455,0.00010999,2]
[334275352,1722882639999,-796.19286455,0.00010999,2]
[334275355,1722882640009,-796.19286455,0.00010999,2]
[334275358,1722882640019,-796.19286455,0.00010999,2]
[334275361,1722882640028,-796.19286455,0.00010999,2]
[334275364,1722882640038,-796.19286455,0.00010999,2]
[334275367,1722882640048,-796.19286455,0.00010999,2]
[334275370,1722882640070,-796.19286455,0.00010999,2]
[334275373,1722882640080,-796.19286455,0.00010999,2]
[334275378,1722882640095,-796.19286455,0.00010999,2]
[334275379,1722882640106,-796.19286455,0.00010999,2]
[334275383,1722882640115,-796.19286455,0.00010999,2]
[334275385,1722882640125,-796.19286455,0.00010999,2]
[334275387,1722882640135,-796.19286455,0.00010999,2]
[334275390,1722882640148,-796.19286455,0.00010999,2]
[334275392,1722882640158,-796.19286455,0.00010999,2]
[334275394,1722882640168,-769.65310241,0.00010999,2]
[334275396,1722882640177,-769.65310241,0.00010999,2]
[334275398,1722882640187,-769.65310241,0.00010999,2]
[334275400,1722882640197,-769.65310241,0.00010999,2]
[334275402,1722882640207,-769.65310241,0.00010999,2]
[334275404,1722882640216,-769.65310241,0.00010999,2]
[334275406,1722882640226,-769.65310241,0.00010999,2]
[334275408,1722882640236,-769.65310241,0.00010999,2]
[334275409,1722882640245,-769.65310241,0.00010999,2]
[334275412,1722882640256,-769.65310241,0.00010999,2]
[334275414,1722882640265,-769.65310241,0.00010999,2]
[334275415,1722882640275,-769.65310241,0.00010999,2]
[334275417,1722882640284,-769.65310241,0.00010999,2]
[334275419,1722882640294,-769.65310241,0.00010999,2]
[334275421,1722882640308,-769.65310241,0.00010999,2]
[334275423,1722882640318,-769.65310241,0.00010999,2]
[334275425,1722882640327,-769.65310241,0.00010999,2]
[334275427,1722882640337,-769.65310241,0.00010999,2]
[334275429,1722882640346,-769.65310241,0.00010999,2]
[334275431,1722882640356,-769.65310241,0.00010999,2]
[334275433,1722882640365,-769.65310241,0.00010999,2]
[334275435,1722882640375,-769.65310241,0.00010999,2]
[334275437,1722882640385,-769.65310241,0.00010999,2]
[334275439,1722882640394,-769.65310241,0.00010999,2]
[334275441,1722882640404,-769.65310241,0.00010999,2]
[334275443,1722882640414,-769.65310241,0.00010999,2]
[334275445,1722882640424,-389.50419194,0.00010999,2]
[334275447,1722882640433,-519.40523966,0.00010999,2]
[334275449,1722882640443,-769.65310238,0.00010999,2]
[334275451,1722882640453,-500.0,0.00010999,2]
[334275453,1722882640462,-610.83499376,0.00010999,2]
[334275455,1722882640473,-1666.81,0.00010999,2]
[334275457,1722882640484,-3965.92,0.00010999,2]
[334275459,1722882640494,-543.0,0.00011,2]
[334275461,1722882640504,-917599.52588714,0.00011,2]
[334275463,1722882640514,-550.0,0.00011,2]
[334275465,1722882640524,-151.0,0.00011,2]
[334275467,1722882640534,-151.0,0.00011,2]
[334275497,1722882640827,-1932.03,0.00011,2]
[334275502,1722882640862,-174.040313,0.00011,2]
[334275504,1722882640872,-174.040313,0.00011,2]
[334275506,1722882640883,-151.0,0.00011,2]
[334275508,1722882640893,-151.0,0.00011,2]
[334275510,1722882640903,-151.0,0.00011,2]
[334275512,1722882640913,-294039.44966129,0.00011,2]
[334275514,1722882640923,-186.965111,0.00011,2]
[334275516,1722882640932,-151.692557,0.00011,2]
[334275518,1722882640942,-151.0,0.00011,2]
[334275520,1722882640953,-186.965111,0.00011,2]
[334275522,1722882640963,-151.692557,0.00011,2]
[334275524,1722882640973,-151.0,0.00011,2]
[334275526,1722882640982,-151.0,0.00011,2]
[334275528,1722882640993,-151.0,0.00011,2]
[334275530,1722882641003,-200.374181,0.00011,2]
[334275532,1722882641012,-200.374181,0.00011,2]
[334275534,1722882641022,-151.0,0.00011,2]
[334275536,1722882641032,-151.0,0.00011,2]
[334275538,1722882641042,-151.0,0.00011,2]
[334275540,1722882641056,-151.0,0.00011,2]
[334275542,1722882641066,-151.0,0.00011,2]
[334275544,1722882641076,-151.0,0.00011,2]
[334275546,1722882641087,-199.647545,0.00011,2]
[334275548,1722882641098,-199.647545,0.00011,2]
[334275550,1722882641108,-151.0,0.00011,2]
[334275552,1722882641118,-189.805734,0.00011,2]
[334275554,1722882641127,-199.647545,0.00011,2]
[334275556,1722882641140,-199.647545,0.00011,2]
[334275558,1722882641150,-151.0,0.00011,2]
[334275560,1722882641160,-151.0,0.00011,2]
[334275562,1722882641170,-151.0,0.00011,2]
[334275564,1722882641179,-151.0,0.00011,2]
[334275566,1722882641188,-151.0,0.00011,2]
[334275568,1722882641198,-151.0,0.00011,2]
[334275570,1722882641208,-151.0,0.00011,2]
[334275572,1722882641219,-151.0,0.00011,2]
[334275574,1722882641229,-151.0,0.00011,2]
[334275576,1722882641239,-151.0,0.00011,2]
[334275578,1722882641249,-151.0,0.00011,2]
[334275580,1722882641262,-151.0,0.00011,2]
[334275582,1722882641273,-151.0,0.00011,2]
[334275584,1722882641282,-1546086.04865175,0.00011,2]
[334275587,1722882641300,-366936.59996874,0.00011,2]
[334275589,1722882641317,-314.025,0.00011,2]
[334275592,1722882641329,-2469.56709992,0.00011,2]
[334275595,1722882641349,-638.24848553,0.00011,2]
[334275597,1722882641361,-14210.02599236,0.00011,2]
[334275599,1722882641373,-850.30085744,0.00011,2]
[334275601,1722882641385,-360.18505011,0.00011,2]
[334275639,1722882641740,-948.10442297,0.00011,2]
[334275641,1722882641752,-14239.65494922,0.00011,2]
[334275643,1722882641764,-963.66992987,0.00011,2]
[334275649,1722882641810,-96984.12912391,0.00011,2]
[334275651,1722882641822,-272.40378388,0.00011,2]
[334275653,1722882641834,-12921.63839813,0.00011,2]
[334275655,1722882641846,-892.40355142,0.00011,2]
[334275658,1722882641857,-760.32601188,0.00011,2]
[334275660,1722882641869,-132133.21504609,0.00011,2]
[334275662,1722882641881,-372.50946649,0.00011,2]
[334275664,1722882641893,-1224.96970469,0.00011,2]
[334275667,1722882641904,-1058.9027694,0.00011,2]
[334275669,1722882641916,-348.7775,0.00011,2]
[334275671,1722882641928,-4534.98122466,0.00011,2]